fUST/lending_fUST_20240112
["ID","MTS","AMOUNT","RATE_DAILY","PERIOD"]
[311274710,1705009844169,-500.0,0.0003041,2]
[311274711,1705009844178,-500.0,0.0003041,2]
[311274712,1705009844187,-500.0,0.0003041,2]
[311274713,1705009844196,-500.0,0.0003041,2]
[311274714,1705009844205,-500.0,0.0003041,2]
[311274715,1705009844214,-296.81029934,0.0003041,2]
[311274716,1705009844223,-500.0,0.0003041,2]
[311274717,1705009844232,-500.0,0.0003041,2]
[311274718,1705009844241,-500.0,0.0003041,2]
[311274719,1705009844250,-500.0,0.0003041,2]
[311274720,1705009844259,-500.0,0.0003041,2]
[311274721,1705009844271,-500.0,0.0003041,2]
[311274722,1705009844280,-500.0,0.0003041,2]
[311274723,1705009844289,-500.0,0.0003041,2]
[311274724,1705009844298,-547.17160883,0.0003041,2]
[311274725,1705009844308,-363.90282833,0.0003041,2]
[311274726,1705009844317,-500.0,0.0003041,2]
[311274727,1705009844326,-500.0,0.0003041,2]
[311274728,1705009844335,-610.04556611,0.0003041,2]
[311274729,1705009844344,-500.0,0.0003041,2]
[311274730,1705009844353,-500.0,0.0003041,2]
[311274732,1705009844362,-500.0,0.0003041,2]
[311274734,1705009844371,-522.58691347,0.0003041,2]
[311274736,1705009844380,-500.0,0.0003041,2]
[311274738,1705009844389,-500.0,0.0003041,2]
[311274740,1705009844398,-500.0,0.0003041,2]
[311274742,1705009844407,-10626.7,0.0003041,2]
[311274744,1705009844416,-500.0,0.0003041,2]
[311274746,1705009844425,-500.0,0.0003041,2]
[311274748,1705009844434,-500.0,0.0003041,2]
[311274750,1705009844443,-409.44955892,0.0003041,2]
[311274752,1705009844452,-500.0,0.0003041,2]
[311274754,1705009844461,-573.66885258,0.0003041,2]
[311274756,1705009844470,-500.0,0.0003041,2]
[311274758,1705009844479,-500.0,0.0003041,2]
[311274760,1705009844489,-2552.42,0.0003041,2]
[311274762,1705009844498,-500.0,0.0003041,2]
[311274764,1705009844506,-500.0,0.0003041,2]
[311274766,1705009844515,-500.0,0.0003041,2]
[311274768,1705009844524,-1008.42,0.0003041,2]
[311274770,1705009844532,-1462.18,0.0003041,2]
[311274772,1705009844541,-500.0,0.0003041,2]
[311274774,1705009844554,-555.35,0.0003041,2]
[311274776,1705009844564,-500.0,0.0003041,2]
[311274778,1705009844574,-499.32168742,0.0003041,2]
[311274780,1705009844583,-500.0,0.0003041,2]
[311274782,1705009844593,-654.56,0.0003041,2]
[311274784,1705009844602,-503.84768849,0.0003041,2]
[311274786,1705009844611,-500.0,0.0003041,2]
[311274788,1705009844620,-545.53911227,0.0003041,2]
[311274790,1705009844630,-500.0,0.0003041,2]
[311274792,1705009844639,-4925.07,0.0003041,2]
[311274794,1705009844648,-500.0,0.0003041,2]
[311274796,1705009844657,-500.0,0.0003041,2]
[311274798,1705009844665,-500.0,0.0003041,2]
[311274800,1705009844674,-500.0,0.0003041,2]
[311274802,1705009844683,-500.0,0.0003041,2]
[311274804,1705009844691,-500.0,0.0003041,2]
[311274806,1705009844701,-500.0,0.0003041,2]
[311274808,1705009844710,-500.0,0.0003041,2]
[311274810,1705009844719,-500.0,0.0003041,2]
[311274812,1705009844728,-500.0,0.0003041,2]
[311274814,1705009844737,-500.0,0.0003041,2]
[311274816,1705009844746,-500.0,0.0003041,2]
[311274818,1705009844754,-500.0,0.0003041,2]
[311274820,1705009844764,-500.0,0.0003041,2]
[311274822,1705009844773,-500.0,0.0003041,2]
[311274824,1705009844782,-583.82,0.0003041,2]
[311274826,1705009844791,-500.0,0.0003041,2]
[311274828,1705009844801,-500.0,0.0003041,2]
[311274830,1705009844810,-910.72,0.0003041,2]
[311274832,1705009844819,-500.0,0.0003041,2]
[311274834,1705009844828,-804.29,0.0003041,2]
[311274836,1705009844837,-1479.34,0.0003041,2]
[311274838,1705009844846,-500.0,0.0003041,2]
[311274840,1705009844855,-154.09671267,0.00030508,7]
[311274842,1705009844863,-620.00000006,0.00030561,2]
[311274844,1705009844873,-177.62,0.00030584,5]
[311274846,1705009844881,-6135.8658343,0.00030645,7]
[311274847,1705009844890,-1792.0,0.0003066,30]
[311274848,1705009844899,-282.0,0.0003066,30]
[311274849,1705009844908,-7932.0,0.0003066,30]
[311274850,1705009844918,-1792.0,0.0003067,30]
[311274851,1705009844927,-282.0,0.0003067,30]
[311274852,1705009844936,-7932.0,0.0003067,30]
[311274853,1705009844946,-1792.0,0.0003068,30]
[311274854,1705009844955,-282.0,0.0003068,30]
[311274855,1705009844964,-7932.0,0.0003068,30]
[311274856,1705009844974,-500.0,0.00030684,2]
[311274857,1705009844983,-504.63167526,0.00030684,2]
[311274858,1705009844992,-500.0,0.00030684,2]
[311274859,1705009845001,-1000.0,0.00030684,2]
[311274860,1705009845010,-500.0,0.00030684,2]
[311274861,1705009845020,-500.0,0.00030684,2]
[311274862,1705009845029,-500.0,0.00030684,2]
[311274863,1705009845039,-503.88246748,0.00030684,2]
[311274864,1705009845048,-500.0,0.00030684,2]
[311274865,1705009845057,-500.0,0.00030684,2]
[311274866,1705009845148,-599.5761929,0.00030684,2]
[311274867,1705009845158,-280.0,0.00030684,2]
[311274868,1705009845168,-500.0,0.00030684,2]
[311274869,1705009845177,-500.0,0.00030684,2]
[311274870,1705009845186,-500.0,0.00030684,2]
[311274871,1705009845196,-500.0,0.00030684,2]
[311274872,1705009845206,-500.0,0.00030684,2]
[311274873,1705009845215,-500.0,0.00030684,2]
[311274874,1705009845225,-500.0,0.00030684,2]
[311274875,1705009845234,-535.68,0.00030684,2]
[311274876,1705009845244,-500.0,0.00030684,2]
[311274877,1705009845253,-500.0,0.00030684,2]
[311274878,1705009845262,-957.08,0.00030684,2]
[311274879,1705009845272,-519.44592669,0.00030684,2]
[311274880,1705009845281,-500.0,0.00030684,2]
[311274881,1705009845290,-500.0,0.00030684,2]
[311274882,1705009845300,-500.0,0.00030684,2]
[311274883,1705009845309,-500.0,0.00030684,2]
[311274884,1705009845318,-325.34216306,0.00030684,2]
[311274885,1705009845327,-438.76690528,0.00030684,2]
[311274886,1705009845336,-500.0,0.00030684,2]
[311274888,1705009845345,-150.1941832,0.00030684,2]
[311274890,1705009845355,-500.0,0.00030684,2]
[311274892,1705009845364,-500.0,0.00030684,2]
[311274894,1705009845372,-500.0,0.00030684,2]
[311274896,1705009845381,-500.0,0.00030684,2]
[311274898,1705009845391,-500.0,0.00030684,2]
[311274901,1705009845400,-10626.7,0.00030684,2]
[311274902,1705009845410,-500.0,0.00030684,2]
[311274903,1705009845419,-500.0,0.00030684,2]
[311274904,1705009845428,-500.0,0.00030684,2]
[311274905,1705009845438,-559.32044654,0.00030684,2]
[311274906,1705009845447,-500.0,0.00030684,2]
[311274907,1705009845456,-2552.42,0.00030684,2]
[311274909,1705009845466,-500.0,0.00030684,2]
[311274911,1705009845474,-1008.42,0.00030684,2]
[311274912,1705009845484,-1462.18,0.00030684,2]
[311274913,1705009845493,-555.35,0.00030684,2]
[311274914,1705009845502,-500.0,0.00030684,2]
[311274915,1705009845511,-500.0,0.00030684,2]
[311274916,1705009845521,-654.56,0.00030684,2]
[311274917,1705009845530,-500.0,0.00030684,2]
[311274918,1705009845539,-4925.07,0.00030684,2]
[311274919,1705009845548,-500.0,0.00030684,2]
[311274921,1705009845558,-500.0,0.00030684,2]
[311274923,1705009845567,-500.0,0.00030684,2]
[311274925,1705009845575,-500.0,0.00030684,2]
[311274927,1705009845584,-500.0,0.00030684,2]
[311274929,1705009845593,-500.0,0.00030684,2]
[311274931,1705009845603,-500.0,0.00030684,2]
[311274933,1705009845612,-500.0,0.00030684,2]
[311274935,1705009845620,-500.0,0.00030684,2]
[311274937,1705009845630,-500.0,0.00030684,2]
[311274939,1705009845639,-583.82,0.00030684,2]
[311274941,1705009845647,-500.0,0.00030684,2]
[311274943,1705009845657,-500.0,0.00030684,2]
[311274945,1705009845667,-910.72,0.00030684,2]
[311274947,1705009845676,-500.0,0.00030684,2]
[311274949,1705009845686,-804.29,0.00030684,2]
[311274951,1705009845695,-1479.34,0.00030684,2]
[311274953,1705009845704,-1712.11417,0.00030684,2]
[311274955,1705009845713,-1712.11417,0.00030684,2]
[311274957,1705009845722,-556.491665,0.00030717,2]
[311274959,1705009845732,-474.325408,0.00030717,2]
[311274961,1705009845755,-673.971467,0.00030717,2]
[311274964,1705009845778,-457.099129,0.00030717,2]
[311274965,1705009845789,-192.93959,0.00030717,2]
[311274967,1705009845799,-192.939591,0.00030717,2]
[311274969,1705009845809,-385.87918,0.00030717,2]
[311274971,1705009845818,-269.385556,0.00030717,2]
[311274974,1705009845831,-151.0,0.00030846,2]
[311274975,1705009845842,-185.06062567,0.00030858,2]
[311274977,1705009845853,-154.09671267,0.00030866,7]
[311274979,1705009845863,-154.09671267,0.00030899,7]
[311274982,1705009845873,-300.0,0.000309,15]
[311274983,1705009845882,-2000.0,0.000309,2]
[311274985,1705009845891,-2000.0,0.0003091,2]
[311274987,1705009845900,-2000.0,0.0003092,2]
[311274989,1705009845909,-2000.0,0.0003093,2]
[311274991,1705009845918,-2000.0,0.0003094,2]
[311274993,1705009845927,-2000.0,0.0003095,2]
[311274995,1705009845936,-160.63126229,0.00030951,7]
[311274997,1705009845944,-500.0,0.00030958,2]
[311274999,1705009845953,-834.41243494,0.00030958,2]
[311275001,1705009845962,-500.0,0.00030958,2]
[311275003,1705009845972,-500.0,0.00030958,2]
[311275005,1705009845981,-500.0,0.00030958,2]
[311275007,1705009845989,-500.0,0.00030958,2]
[311275009,1705009845998,-538.7,0.00030958,2]
[311275011,1705009846008,-500.0,0.00030958,2]
[311275013,1705009846018,-535.68,0.00030958,2]
[311275015,1705009846027,-500.0,0.00030958,2]
[311275017,1705009846037,-957.08,0.00030958,2]
[311275019,1705009846045,-500.0,0.00030958,2]
[311275021,1705009846054,-279.26281635,0.00030958,2]
[311275023,1705009846063,-500.0,0.00030958,2]
[311275025,1705009846072,-500.0,0.00030958,2]
[311275027,1705009846080,-500.0,0.00030958,2]
[311275029,1705009846089,-500.0,0.00030958,2]
[311275031,1705009846098,-500.0,0.00030958,2]
[311275033,1705009846107,-563.46,0.00030958,2]
[311275035,1705009846116,-10626.7,0.00030958,2]
[311275037,1705009846126,-500.0,0.00030958,2]
[311275039,1705009846135,-500.0,0.00030958,2]
[311275041,1705009846144,-500.0,0.00030958,2]
[311275043,1705009846153,-500.0,0.00030958,2]
[311275045,1705009846162,-2552.42,0.00030958,2]
[311275047,1705009846172,-1008.42,0.00030958,2]
[311275049,1705009846181,-1462.18,0.00030958,2]
[311275051,1705009846190,-555.35,0.00030958,2]
[311275054,1705009846198,-654.56,0.00030958,2]
[311275057,1705009846207,-500.0,0.00030958,2]
[311275059,1705009846217,-4925.07,0.00030958,2]
[311275062,1705009846226,-234.38552857,0.00030958,2]
[311275065,1705009846235,-500.0,0.00030958,2]
[311275068,1705009846244,-500.0,0.00030958,2]
[311275071,1705009846253,-500.0,0.00030958,2]
[311275074,1705009846262,-500.0,0.00030958,2]
[311275076,1705009846273,-500.0,0.00030958,2]
[311275078,1705009846282,-500.0,0.00030958,2]
[311275080,1705009846290,-583.82,0.00030958,2]
[311275082,1705009846299,-500.0,0.00030958,2]
[311275084,1705009846308,-422.14478228,0.00030958,2]
[311275086,1705009846318,-910.72,0.00030958,2]
[311275088,1705009846327,-500.0,0.00030958,2]
[311275090,1705009846336,-804.29,0.00030958,2]
[311275092,1705009846346,-1479.34,0.00030958,2]
[311275094,1705009846354,-2000.0,0.0003096,2]
[311275096,1705009846363,-2000.0,0.0003097,2]
[311275098,1705009846373,-2000.0,0.0003098,2]
[311275100,1705009846381,-2000.0,0.0003099,2]
[311275102,1705009846390,-83822.43068293,0.00031,4]
[311275104,1705009846399,-2000.0,0.00031,2]
[311275106,1705009846408,-200.0,0.00031,4]
[311275108,1705009846417,-1500.0,0.00031,2]
[311275110,1705009846426,-2066.583364,0.0003101,2]
[311275112,1705009846435,-1870.57146849,0.00031017,2]
[311275114,1705009846444,-6466.27059545,0.00031017,2]
[311275116,1705009846453,-197.32879931,0.00031017,2]
[311275118,1705009846465,-393.17488214,0.00031017,2]
[311275120,1705009846474,-154.09671267,0.00031073,7]
[311275122,1705009846483,-474.325408,0.00031087,2]
[311275124,1705009846492,-556.491665,0.00031087,2]
[311275126,1705009846500,-673.971467,0.00031087,2]
[311275128,1705009846510,-457.099129,0.00031087,2]
[311275130,1705009846520,-167.536548,0.00031087,2]
[311275132,1705009846529,-192.93959,0.00031087,2]
[311275134,1705009846538,-167.536547,0.00031087,2]
[311275136,1705009846547,-192.939591,0.00031087,2]
[311275138,1705009846556,-385.87918,0.00031087,2]
[311275140,1705009846565,-269.385556,0.00031087,2]
[311275142,1705009846574,-2373.29495294,0.00031089,2]
[311275144,1705009846582,-2373.29495294,0.00031089,2]
[311275146,1705009846591,-2373.29495294,0.00031089,2]
[311275147,1705009846600,-2373.29495294,0.00031089,2]
[311275150,1705009846610,-2373.29495294,0.00031089,2]
[311275152,1705009846619,-2373.29495294,0.00031089,2]
[311275153,1705009846631,-2373.29495294,0.00031089,2]
[311275156,1705009846640,-2373.29495294,0.00031089,2]
[311275158,1705009846650,-2373.29495294,0.00031089,2]
[311275159,1705009846659,-2373.29495294,0.00031089,2]
[311275161,1705009846668,-500.0,0.00031232,2]
[311275164,1705009846677,-500.0,0.00031232,2]
[311275166,1705009846687,-500.0,0.00031232,2]
[311275168,1705009846696,-500.0,0.00031232,2]
[311275169,1705009846706,-500.0,0.00031232,2]
[311275172,1705009846716,-500.0,0.00031232,2]
[311275173,1705009846725,-535.68,0.00031232,2]
[311275176,1705009846734,-500.0,0.00031232,2]
[311275177,1705009846744,-957.08,0.00031232,2]
[311275179,1705009846753,-238.97274946,0.00031232,2]
[311275181,1705009846762,-500.0,0.00031232,2]
[311275183,1705009846771,-500.0,0.00031232,2]
[311275185,1705009846781,-500.0,0.00031232,2]
[311275187,1705009846790,-543.49870602,0.00031232,2]
[311275189,1705009846800,-500.0,0.00031232,2]
[311275191,1705009846809,-10626.7,0.00031232,2]
[311275193,1705009846819,-500.0,0.00031232,2]
[311275195,1705009846828,-500.0,0.00031232,2]
[311275197,1705009846837,-500.0,0.00031232,2]
[311275199,1705009846846,-2552.42,0.00031232,2]
[311275201,1705009846854,-1008.42,0.00031232,2]
[311275203,1705009846863,-1462.18,0.00031232,2]
[311275205,1705009846872,-555.35,0.00031232,2]
[311275207,1705009846881,-654.56,0.00031232,2]
[311275209,1705009846891,-500.0,0.00031232,2]
[311275211,1705009846899,-4925.07,0.00031232,2]
[311275213,1705009846908,-500.0,0.00031232,2]
[311275215,1705009846917,-500.0,0.00031232,2]
[311275216,1705009846926,-500.0,0.00031232,2]
[311275217,1705009846935,-500.0,0.00031232,2]
[311275218,1705009846944,-500.0,0.00031232,2]
[311275219,1705009846953,-500.0,0.00031232,2]
[311275220,1705009846962,-583.82,0.00031232,2]
[311275221,1705009846971,-500.0,0.00031232,2]
[311275222,1705009846982,-910.72,0.00031232,2]
[311275223,1705009846991,-500.0,0.00031232,2]
[311275224,1705009847000,-804.29,0.00031232,2]
[311275225,1705009847009,-1479.34,0.00031232,2]
[311275226,1705009847020,-160.63126229,0.00031276,7]
[311275227,1705009847029,-151.02718489,0.0003133,2]
[311275228,1705009847038,-250.53597648,0.0003133,2]
[311275229,1705009847047,-160.63126229,0.00031404,7]
[311275231,1705009847056,-276000.0,0.00031406,2]
[311275233,1705009847065,-1848.873028,0.00031406,2]
[311275234,1705009847075,-1712.11417,0.00031406,2]
[311275236,1705009847084,-1712.11417,0.00031406,2]
[311275239,1705009847094,-500.0,0.00031506,2]
[311275241,1705009847103,-500.0,0.00031506,2]
[311275242,1705009847112,-500.0,0.00031506,2]
[311275244,1705009847121,-500.0,0.00031506,2]
[311275246,1705009847131,-500.0,0.00031506,2]
[311275248,1705009847140,-535.68,0.00031506,2]
[311275251,1705009847150,-500.0,0.00031506,2]
[311275252,1705009847159,-957.08,0.00031506,2]
[311275254,1705009847168,-500.0,0.00031506,2]
[311275256,1705009847178,-500.0,0.00031506,2]
[311275258,1705009847187,-500.0,0.00031506,2]
[311275261,1705009847196,-500.0,0.00031506,2]
[311275262,1705009847206,-10626.7,0.00031506,2]
[311275265,1705009847216,-500.0,0.00031506,2]
[311275267,1705009847225,-500.0,0.00031506,2]
[311275269,1705009847235,-191.67117036,0.00031506,2]
[311275271,1705009847244,-2552.42,0.00031506,2]
[311275272,1705009847253,-1008.42,0.00031506,2]
[311275283,1705009847344,-1462.18,0.00031506,2]
[311275285,1705009847354,-555.35,0.00031506,2]
[311275287,1705009847363,-654.56,0.00031506,2]
[311275289,1705009847372,-500.0,0.00031506,2]
[311275291,1705009847382,-4925.07,0.00031506,2]
[311275293,1705009847391,-500.0,0.00031506,2]
[311275295,1705009847400,-500.0,0.00031506,2]
[311275297,1705009847409,-500.0,0.00031506,2]
[311275299,1705009847418,-500.0,0.00031506,2]
[311275301,1705009847428,-500.0,0.00031506,2]
[311275303,1705009847438,-500.0,0.00031506,2]
[311275305,1705009847447,-583.82,0.00031506,2]
[311275307,1705009847457,-500.0,0.00031506,2]
[311275309,1705009847467,-910.72,0.00031506,2]
[311275311,1705009847476,-500.0,0.00031506,2]
[311275313,1705009847486,-804.29,0.00031506,2]
[311275315,1705009847495,-1479.34,0.00031506,2]
[311275317,1705009847504,-155.0,0.00031507,2]
[311275319,1705009847513,-152.31739519,0.00031529,7]
[311275321,1705009847526,-5000.0,0.00031557,7]
[311275323,1705009847535,-154.09671267,0.00031626,7]
[311275325,1705009847544,-151.0,0.00031692,2]
[311275327,1705009847553,-154.09671267,0.0003176,7]
[311275329,1705009847562,-500.0,0.0003178,2]
[311275331,1705009847571,-500.0,0.0003178,2]
[311275333,1705009847580,-500.0,0.0003178,2]
[311275335,1705009847589,-500.0,0.0003178,2]
[311275337,1705009847598,-535.68,0.0003178,2]
[311275339,1705009847607,-577.22955259,0.0003178,2]
[311275341,1705009847618,-957.08,0.0003178,2]
[311275343,1705009847627,-500.0,0.0003178,2]
[311275345,1705009847636,-500.0,0.0003178,2]
[311275347,1705009847645,-500.0,0.0003178,2]
[311275349,1705009847655,-500.0,0.0003178,2]
[311275351,1705009847663,-10626.7,0.0003178,2]
[311275353,1705009847673,-500.0,0.0003178,2]
[311275355,1705009847683,-500.0,0.0003178,2]
[311275357,1705009847692,-2552.42,0.0003178,2]
[311275359,1705009847701,-1008.42,0.0003178,2]
[311275361,1705009847712,-1462.18,0.0003178,2]
[311275363,1705009847721,-555.35,0.0003178,2]
[311275365,1705009847730,-654.56,0.0003178,2]
[311275367,1705009847739,-500.0,0.0003178,2]
[311275369,1705009847750,-4925.07,0.0003178,2]
[311275371,1705009847759,-500.0,0.0003178,2]
[311275374,1705009847770,-500.0,0.0003178,2]
[311275376,1705009847779,-500.0,0.0003178,2]
[311275377,1705009847789,-500.0,0.0003178,2]
[311275379,1705009847798,-500.0,0.0003178,2]
[311275381,1705009847808,-500.0,0.0003178,2]
[311275383,1705009847817,-583.82,0.0003178,2]
[311275385,1705009847826,-500.0,0.0003178,2]
[311275388,1705009847835,-910.72,0.0003178,2]
[311275389,1705009847845,-500.0,0.0003178,2]
[311275392,1705009847854,-804.29,0.0003178,2]
[311275393,1705009847862,-1479.34,0.0003178,2]
[311275396,1705009847872,-1212.35155892,0.000318,2]
[311275397,1705009847881,-1212.35155892,0.000318,2]
[311275400,1705009847891,-302.05436979,0.00031856,4]
[311275402,1705009847900,-154.09671267,0.00031887,7]
[311275404,1705009847908,-154.09671267,0.00031892,7]
[311275406,1705009847917,-1000.0,0.00031896,2]
[311275408,1705009847927,-1000.0,0.00031912,2]
[311275409,1705009847936,-155.78182122,0.00031973,7]
[311275412,1705009847945,-1000.0,0.00031988,2]
[311275414,1705009847954,-13278.2213,0.00031999,2]
[311275416,1705009847963,-500.0,0.00031999,2]
[311275418,1705009847972,-614.24655462,0.00031999,2]
[311275419,1705009847981,-500.0,0.00031999,2]
[311275422,1705009847990,-500.0,0.00031999,2]
[311275425,1705009848011,-500.0,0.00031999,2]
[311275427,1705009848022,-500.0,0.00031999,2]
[311275429,1705009848031,-153.00504468,0.00031999,2]
[311275431,1705009848042,-445.71161823,0.00031999,2]
[311275433,1705009848051,-500.0,0.00031999,2]
[311275435,1705009848061,-500.0,0.00031999,2]
[311275437,1705009848070,-500.0,0.00031999,2]
[311275440,1705009848080,-500.0,0.00031999,2]
[311275442,1705009848090,-197.58697403,0.00031999,2]
[311275444,1705009848099,-309.38599436,0.00031999,2]
[311275446,1705009848109,-500.0,0.00031999,2]
[311275448,1705009848119,-500.0,0.00031999,2]
[311275450,1705009848128,-500.0,0.00031999,2]
[311275452,1705009848137,-500.0,0.00031999,2]
[311275454,1705009848147,-452.34649858,0.00031999,2]
[311275456,1705009848156,-326.50252233,0.00031999,2]
[311275458,1705009848166,-201.56827185,0.00031999,2]
[311275460,1705009848175,-370.76337205,0.00031999,4]
[311275462,1705009848184,-500.0,0.00031999,4]
[311275464,1705009848193,-399.90722612,0.00031999,4]
[311275466,1705009848203,-549.97215065,0.00031999,4]
[311275468,1705009848212,-224.97680652,0.00031999,4]
[311275470,1705009848222,-470.32596766,0.00031999,2]
[311275472,1705009848231,-5999.97,0.00032,2]
[311275474,1705009848240,-6000.0,0.00032,2]
[311275476,1705009848250,-194.85553355,0.00032,4]
[311275478,1705009848259,-825.18466711,0.00032,2]
[311275480,1705009848269,-500.0,0.00032,2]
[311275482,1705009848279,-1500.0,0.00032,2]
[311275484,1705009848288,-1000.0,0.00032006,7]
[311275486,1705009848298,-152.31739519,0.0003202,7]
[311275488,1705009848307,-500.0,0.00032054,2]
[311275490,1705009848317,-419.61547142,0.00032054,2]
[311275492,1705009848326,-535.68,0.00032054,2]
[311275494,1705009848336,-957.08,0.00032054,2]
[311275496,1705009848345,-500.0,0.00032054,2]
[311275498,1705009848355,-500.0,0.00032054,2]
[311275500,1705009848363,-500.0,0.00032054,2]
[311275502,1705009848373,-10626.7,0.00032054,2]
[311275504,1705009848383,-500.0,0.00032054,2]
[311275506,1705009848392,-500.0,0.00032054,2]
[311275508,1705009848402,-2552.42,0.00032054,2]
[311275510,1705009848411,-1008.42,0.00032054,2]
[311275512,1705009848421,-1462.18,0.00032054,2]
[311275514,1705009848430,-555.35,0.00032054,2]
[311275516,1705009848440,-654.56,0.00032054,2]
[311275518,1705009848450,-500.0,0.00032054,2]
[311275520,1705009848459,-4925.07,0.00032054,2]
[311275522,1705009848468,-500.0,0.00032054,2]
[311275524,1705009848478,-500.0,0.00032054,2]
[311275526,1705009848487,-500.0,0.00032054,2]
[311275529,1705009848497,-500.0,0.00032054,2]
[311275531,1705009848506,-500.0,0.00032054,2]
[311275533,1705009848515,-500.0,0.00032054,2]
[311275535,1705009848526,-583.82,0.00032054,2]
[311275536,1705009848535,-500.0,0.00032054,2]
[311275538,1705009848545,-910.72,0.00032054,2]
[311275540,1705009848556,-500.0,0.00032054,2]
[311275543,1705009848566,-804.29,0.00032054,2]
[311275545,1705009848575,-1479.34,0.00032054,2]
[311275547,1705009848584,-154.09671267,0.00032158,7]
[311275549,1705009848594,-214.52011944,0.00032237,2]
[311275551,1705009848603,-300.0,0.00032304,2]
[311275553,1705009848612,-500.0,0.00032328,2]
[311275555,1705009848622,-535.68,0.00032328,2]
[311275557,1705009848636,-957.08,0.00032328,2]
[311275559,1705009848646,-500.0,0.00032328,2]
[311275561,1705009848655,-500.0,0.00032328,2]
[311275563,1705009848664,-500.0,0.00032328,2]
[311275565,1705009848673,-10626.7,0.00032328,2]
[311275567,1705009848683,-500.0,0.00032328,2]
[311275569,1705009848692,-500.0,0.00032328,2]
[311275571,1705009848701,-2552.42,0.00032328,2]
[311275573,1705009848711,-1008.42,0.00032328,2]
[311275575,1705009848721,-1462.18,0.00032328,2]
[311275577,1705009848730,-555.35,0.00032328,2]
[311275579,1705009848739,-654.56,0.00032328,2]
[311275581,1705009848748,-500.0,0.00032328,2]
[311275583,1705009848758,-4925.07,0.00032328,2]
[311275585,1705009848767,-557.16004725,0.00032328,2]
[311275587,1705009848777,-500.0,0.00032328,2]
[311275589,1705009848786,-500.0,0.00032328,2]
[311275591,1705009848795,-500.0,0.00032328,2]
[311275593,1705009848805,-500.0,0.00032328,2]
[311275595,1705009848814,-500.0,0.00032328,2]
[311275597,1705009848823,-500.0,0.00032328,2]
[311275599,1705009848832,-583.82,0.00032328,2]
[311275601,1705009848842,-910.72,0.00032328,2]
[311275603,1705009848851,-500.0,0.00032328,2]
[311275605,1705009848860,-804.29,0.00032328,2]
[311275607,1705009848869,-1479.34,0.00032328,2]
[311275609,1705009848879,-604.10873957,0.00032392,7]
[311275611,1705009848889,-385.623042,0.000324,16]
[311275613,1705009848898,-1133.61224774,0.0003247,7]
[311275615,1705009848907,-461.8764711,0.0003247,7]
[311275617,1705009848916,-5000.0,0.0003247,7]
[311275619,1705009848925,-318.45952997,0.0003247,7]
[311275621,1705009848934,-1024.13580835,0.0003247,7]
[311275623,1705009848943,-355.21600608,0.0003247,7]
[311275625,1705009848953,-252.0,0.0003247,7]
[311275627,1705009848962,-252.0,0.0003248,7]
[311275629,1705009848971,-3272.72787271,0.0003249,2]
[311275631,1705009848981,-4120.63369854,0.000325,15]
[311275633,1705009848990,-989596.54905802,0.000325,20]
[311275643,1705009849079,-10202.84952288,0.000325,20]
[311275658,1705009849213,-500.0,0.00030136,2]
[311275660,1705009849223,-4101.45,0.000325,20]